bitfinex-derivatives/quotes_SOLF0:USTF0_20250125
["timestamp","ask_amount","ask_price","bid_price","bid_amount"]
[1737765763855,0.02978198,249.76,249.72,0.02951646]
[1737765764057,17.73426315,249.89,249.7,1.3795]
[1737765764256,0.02648148,249.76,249.72,0.02782083]
[1737765764460,17.73426315,249.89,249.7,1.3795]
[1737765764652,0.02652499,249.76,249.72,0.02742508]
[1737765764856,17.73426315,249.89,249.7,1.3795]
[1737765765358,0.02676988,249.82,249.77,0.02819978]
[1737765765852,4.0037,249.78,249.77,0.02819978]
[1737765766056,14.79426315,249.81,249.7,1.3795]
[1737765766457,4.0045,249.73,249.7,1.3795]
[1737765766956,4.0045,249.73,249.64,1.3382]
[1737765767158,4.0045,249.73,249.69,0.02617229]
[1737765768260,4.0049,249.71,249.69,0.02617229]
[1737765771968,4.0063,249.62,249.56,1.328]
[1737765772261,14.79426315,249.65,249.46,1.3891]
[1737765773060,4.0071,249.57,249.46,1.3891]
[1737765773254,0.02585211,249.58,249.53,0.02740871]
[1737765774765,4.0074,249.55,249.53,0.02740871]
[1737765775964,4.0082,249.5,249.4,2.5917]
[1737765776167,14.79426315,249.61,249.41,1.3242]
[1737765776668,4.0079,249.52,249.41,1.3242]
[1737765777165,4.03827882,249.49,249.4,1.328]
[1737765777467,4.03827882,249.49,249.4,2.6522]
[1737765779363,0.02987882,249.49,249.41,4.0095]
[1737765779667,0.02987882,249.49,249.4,2.6522]
[1737765780268,0.02987882,249.49,249.43,4.0092]
[1737765780768,0.02987882,249.49,249.4,2.6522]
[1737765781771,17.73426315,249.69,249.47,14.79426315]
[1737765781968,4.0068,249.59,249.49,4.0082]
[1737765782165,17.73426315,249.69,249.47,14.79426315]
[1737765782369,4.0074,249.55,249.47,14.79426315]
[1737765782570,14.79426315,249.65,249.4,2.6522]
[1737765782870,0.0282476,249.53,249.49,0.02980296]
[1737765783066,4.007,249.58,249.4,2.6522]
[1737765783267,14.79426315,249.72,249.52,14.79426315]
[1737765783467,14.79426315,249.72,249.53,2.5614]
[1737765784068,14.79426315,249.72,249.48,14.79426315]
[1737765784270,14.79426315,249.63,249.4,2.5732]
[1737765784473,0.03032419,249.62,249.4,2.5732]
[1737765784771,14.79426315,249.63,249.4,2.5732]
[1737765785072,2.94,249.64,249.4,2.5732]
[1737765785270,2.94,249.64,249.45,14.79426315]
[1737765785465,2.94,249.64,249.52,4.0077]
[1737765785670,0.02816114,249.57,249.53,2.6995]
[1737765796078,0.02816114,249.57,249.52,0.02737111]
[1737765797079,4.0074,249.55,249.52,0.02737111]
[1737765797280,0.02816114,249.57,249.52,0.02737111]
[1737765797477,0.02816114,249.57,249.4,2.6792]
[1737765797678,14.79426315,249.58,249.4,2.6792]
[1737765798281,14.79426315,249.54,249.36,1.3604]
[1737765798581,4.0088,249.46,249.36,1.3604]
[1737765798979,0.02990233,249.43,249.36,1.3604]
[1737765800979,4.03930233,249.43,249.36,1.3604]
[1737765801379,0.02990233,249.43,249.29,2.6373]
[1737765801582,0.02990233,249.43,249.3,1.28]
[1737765801781,0.02990233,249.43,249.31,14.79426315]
[1737765801978,0.02990233,249.43,249.3,1.28]
[1737765802482,4.0096,249.41,249.3,5.2912]
[1737765802983,0.02906009,249.38,249.3,5.2912]
[1737765803577,0.02906009,249.38,249.3,1.28]
[1737765804281,4.0103,249.37,249.29,6.6488]
[1737765805384,0.02906009,249.38,249.29,2.6373]
[1737765805587,4.0111,249.32,249.29,2.6373]
[1737765805787,14.79426315,249.46,249.29,2.6373]
[1737765806380,0.02555905,249.4,249.29,2.6373]
[1737765806885,4.0102,249.38,249.29,2.6373]
[1737765807085,0.02555905,249.4,249.29,2.6373]
[1737765807786,0.02555905,249.4,249.27,4.0118]
[1737765808286,4.0103,249.37,249.27,4.0118]
[1737765808584,14.79426315,249.46,249.27,4.0118]
[1737765808784,0.02601938,249.34,249.27,4.0118]
[1737765808982,4.0101,249.39,249.27,4.0118]
[1737765809187,0.02676193,249.33,249.27,4.0118]
[1737765809383,14.79426315,249.46,249.24,2.7437]
[1737765809591,0.02799906,249.32,249.29,4.0115]
[1737765809889,0.02624767,249.33,249.29,4.0115]
[1737765810683,0.02624767,249.33,249.27,4.0118]
[1737765811390,0.02624767,249.33,249.24,6.756]
[1737765811685,0.02624767,249.33,249.25,9.26922625]
[1737765812292,4.0114,249.3,249.25,9.26922625]
[1737765812990,0.02624767,249.33,249.25,9.26922625]
[1737765814191,4.0114,249.3,249.25,9.26922625]
[1737765815690,0.02624767,249.33,249.25,9.26922625]
[1737765815897,0.02624767,249.33,249.29,9.26922625]
[1737765816191,0.1216,249.47,249.29,9.26922625]
[1737765816396,0.1216,249.47,249.25,9.26922625]
[1737765816594,9.26922625,249.41,249.25,9.26922625]
[1737765816795,4.0111,249.32,249.25,9.26922625]
[1737765817297,0.03031557,249.31,249.26,0.02607242]
[1737765817895,4.0115,249.3,249.26,0.02607242]
[1737765818195,0.03031557,249.31,249.26,0.02607242]
[1737765819094,0.03031557,249.31,249.27,4.0118]
[1737765819292,0.03031557,249.31,249.26,0.02607242]
[1737765819596,4.0114,249.3,249.26,0.02607242]
[1737765819790,0.03031557,249.31,249.26,0.02607242]
[1737765821189,4.0103,249.37,249.29,13.28062625]
[1737765821389,9.26922625,249.45,249.29,9.26922625]
[1737765821798,145.4794,249.3,249.25,9.26922625]
[1737765822297,145.50842006,249.3,249.25,9.29707198]
[1737765823298,145.50842006,249.3,249.25,0.02784573]
[1737765823597,4.012,249.26,249.25,0.02784573]
[1737765824001,0.02902006,249.3,249.18,1.3184]
[1737765824207,9.26922625,249.29,249.18,1.3184]
[1737765824903,9.26922625,249.29,249.09,13.28392625]
[1737765825105,9.26922625,249.29,249.09,9.26922625]
[1737765825408,0.0267739,249.21,249.17,0.02960945]
[1737765826406,0.4034,249.35,249.17,0.02960945]
[1737765826607,0.4034,249.35,249.13,14.84692142]
[1737765826806,4.0114,249.3,249.17,4.0134]
[1737765827006,2.94,249.36,249.21,14.84692142]
[1737765827307,14.84692142,249.43,249.22,2.5991]
[1737765827507,4.0108,249.34,249.22,2.5991]
[1737765827707,4.0108,249.34,249.3,0.027197]
[1737765828106,0.02671799,249.35,249.3,0.027197]
[1737765830510,0.1793,249.49,249.3,0.027197]
[1737765830710,0.253,249.5,249.29,14.84692142]
[1737765830910,14.84692142,249.51,249.29,14.84692142]
[1737765831708,0.02614098,249.42,249.38,0.0273922]
[1737765831909,4.0092,249.44,249.38,0.0273922]
[1737765832110,0.02663296,249.42,249.38,0.0273922]
[1737765832611,4.0099,249.4,249.38,0.0273922]
[1737765833414,14.84692142,249.39,249.22,2.5991]
[1737765834512,4.0115,249.29,249.28,0.02823508]
[1737765837009,4.0123,249.25,249.22,1.3109]
[1737765837217,14.84692142,249.31,249.12,14.84692142]
[1737765837718,4.0127,249.22,249.12,14.84692142]
[1737765838118,0.02542772,249.19,249.15,0.02782382]
[1737765839013,14.84692142,249.31,249.15,0.02782382]
[1737765839218,14.84692142,249.4,249.2,14.84692142]
[1737765839418,14.84692142,249.4,249.21,1.3765]
[1737765840010,4.0116,249.29,249.21,1.3765]
[1737765840216,0.02748359,249.33,249.28,0.02601823]
[1737765840412,2.94,249.41,249.21,1.3765]
[1737765840618,0.02994719,249.33,249.28,0.02967479]
[1737765840914,4.0114,249.3,249.28,0.02967479]
[1737765842723,14.84692142,249.32,249.12,14.84692142]
[1737765843721,0.02995844,249.24,249.2,0.02848517]
[1737765844221,4.0128,249.21,249.2,0.02848517]
[1737765855727,0.02995844,249.24,249.2,9.30137745]
[1737765855927,2.94,249.38,249.21,1.3107]
[1737765856416,4.0119,249.27,249.21,1.3107]
[1737765856618,2.94,249.38,249.2,9.27289228]
[1737765856619,9.27289228,249.37,249.2,9.27289228]
[1737765856823,4.0124,249.24,249.2,9.27289228]
[1737765857024,0.02664629,249.31,249.2,9.27289228]
[1737765857224,9.27289228,249.37,249.2,9.30097739]
[1737765857421,0.02823825,249.28,249.2,9.27289228]
[1737765857623,0.02823825,249.28,249.26,0.02883656]
[1737765858325,4.0119,249.27,249.26,0.02883656]
[1737765861025,0.02823825,249.28,249.16,9.27289228]
[1737765861229,4.0131,249.2,249.16,9.27289228]
[1737765861427,9.27289228,249.33,249.16,9.27289228]
[1737765861631,4.013,249.2,249.14,2.6746]
[1737765862329,4.0135,249.17,249.15,0.02901411]
[1737765862624,9.27289228,249.28,249.12,9.27289228]
[1737765862822,0.02883926,249.18,249.14,0.03068264]
[1737765863025,12.4938,249.32,249.12,9.27289228]
[1737765863324,0.02893457,249.18,249.14,0.02581677]
[1737765863630,0.02680396,249.18,249.14,0.02787208]
[1737765864631,4.0135,249.17,249.14,0.02787208]
[1737765864833,0.02680396,249.18,249.14,0.02787208]
[1737765865730,4.04010396,249.18,249.14,0.02787208]
[1737765866122,0.02680396,249.18,249.14,0.02787208]
[1737765866427,4.0137,249.16,249.14,0.02787208]
[1737765867030,0.02680396,249.18,249.14,0.02787208]
[1737765867529,4.0135,249.17,249.14,0.02787208]
[1737765867726,0.02680396,249.18,249.14,0.02787208]
[1737765868330,4.0137,249.16,249.14,0.02787208]
[1737765869229,4.0135,249.17,249.14,0.02787208]
[1737765875430,0.02680396,249.18,249.14,0.02787208]
[1737765876138,4.04020396,249.18,249.14,0.02787208]
[1737765877235,4.0135,249.17,249.14,0.02787208]
[1737765880333,0.02680396,249.18,249.14,0.02787208]
[1737765880535,4.0136,249.16,249.14,0.02787208]
[1737765881435,0.02680396,249.18,249.14,0.02787208]
[1737765881734,4.0138,249.15,249.14,0.02787208]
[1737765889144,4.0135,249.17,249.14,0.02787208]
[1737765889354,4.0135,249.17,249.16,5.94039853]
[1737765889739,4.0138,249.15,249.14,0.02787208]
[1737765890240,5.94039853,249.17,249.07,5.94039853]
[1737765890445,4.0148,249.09,249.07,5.94039853]
[1737765890842,4.0148,249.09,249.04,5.94039853]
[1737765891345,4.04376278,249.09,249.04,5.94039853]
[1737765891738,4.015,249.08,249.04,5.94039853]
[1737765892540,4.0151,249.07,249.04,5.94039853]
[1737765893139,4.0155,249.05,249.01,7.30119853]
[1737765893344,5.94039853,249.03,248.95,5.94039853]
[1737765893546,5.94039853,249.11,249.0,5.94039853]
[1737765893851,151.50739853,249.15,249.07,5.94039853]
[1737765894045,0.02875408,249.08,249.04,5.94039853]
[1737765894244,4.0155,249.05,249.01,7.33239853]
[1737765894442,0.02537762,249.08,249.01,7.33239853]
[1737765894749,5.94039853,249.06,248.95,5.94039853]
[1737765894945,5.94039853,249.03,248.95,5.94039853]
[1737765895150,5.96981824,249.03,248.95,5.94039853]
[1737765895346,4.0168,248.96,248.95,5.94039853]
[1737765895541,5.94039853,249.03,248.92,7.33239853]
[1737765895850,0.02687907,248.98,248.92,7.33239853]
[1737765896049,4.0172,248.94,248.92,7.33239853]
[1737765896444,0.02687907,248.98,248.92,7.33239853]
[1737765896645,0.02687907,248.98,248.92,5.94039853]
[1737765897154,4.04357907,248.98,248.92,5.94039853]
[1737765897342,0.02687907,248.98,248.92,5.94039853]
[1737765897738,0.02687907,248.98,248.91,2.6451]
[1737765898142,0.02687907,248.98,248.9,4.05737136]
[1737765900845,2.94,249.11,248.9,4.05737136]
[1737765900846,9.29484398,249.28,248.97,18.58968796]
[1737765901047,9.29484398,249.28,249.09,9.29484398]
[1737765901247,9.29484398,249.24,249.1,4.0411]
[1737765901450,4.0128,249.22,249.1,4.0411]
[1737765901749,9.29484398,249.24,249.1,4.0411]
[1737765901945,0.02552326,249.18,249.14,0.02692178]
[1737765902253,2.94,249.31,249.14,0.02692178]
[1737765902455,9.78634398,249.37,249.18,9.29484398]
[1737765902949,9.29484398,249.37,249.22,9.29484398]
[1737765903153,9.29484398,249.45,249.26,9.29484398]
[1737765903342,9.29484398,249.45,249.27,2.577]
[1737765903544,0.03073381,249.38,249.33,0.0291696]
[1737765906250,9.29484398,249.37,249.22,9.29484398]
[1737765906652,9.29484398,249.37,249.25,4.0122]
[1737765906847,9.29484398,249.41,249.22,9.29484398]
[1737765907047,9.29484398,249.45,249.26,9.29484398]
[1737765907248,9.29484398,249.45,249.3,9.29484398]
[1737765907449,0.03069058,249.38,249.34,4.0106]
[1737765907854,0.03069058,249.38,249.33,0.02665508]
[1737765911960,9.29484398,249.54,249.36,9.29484398]
[1737765912153,4.0079,249.52,249.41,4.0095]
[1737765912353,9.29484398,249.58,249.4,9.29484398]
[1737765912651,9.29484398,249.58,249.43,4.0092]
[1737765912854,4.0073,249.56,249.44,9.29484398]
[1737765913057,52.06101739,249.67,249.48,9.29484398]
[1737765913352,52.06101739,249.67,249.48,9.32492113]
[1737765913557,0.02841626,249.6,249.48,9.29484398]
[1737765913758,0.02841626,249.6,249.55,0.03059167]
[1737765915052,4.03501626,249.6,249.55,0.03059167]
[1737765916053,0.02841626,249.6,249.55,0.03059167]
[1737765916253,0.02841626,249.6,249.56,9.29484398]
[1737765916448,9.29484398,249.76,249.56,9.29484398]
[1737765916758,2.94,249.78,249.57,9.29484398]
[1737765916759,9.29484398,249.72,249.57,9.29484398]
[1737765916950,9.29484398,249.68,249.52,9.29484398]
[1737765917152,4.0058,249.65,249.52,9.29484398]
[1737765917350,9.29484398,249.72,249.52,9.29484398]
[1737765917657,4.0062,249.63,249.6,0.02958678]
[1737765918054,0.02921934,249.64,249.6,0.02958678]
[1737765918255,4.03521934,249.64,249.6,0.02958678]
[1737765918454,0.02921934,249.64,249.6,0.02958678]
[1737765919052,4.0063,249.62,249.6,0.02958678]
[1737765919455,0.02921934,249.64,249.48,1.3852]
[1737765919654,0.2014,249.67,249.48,1.3852]
[1737765920653,0.03077776,249.6,249.55,0.02860736]
[1737765921059,4.0072,249.56,249.55,0.02860736]
[1737765922257,4.0082,249.5,249.41,1.2803]
[1737765923054,2.94,249.58,249.41,1.2803]
[1737765923356,4.0084,249.49,249.47,0.02833872]
[1737765928760,0.02650848,249.52,249.47,0.02833872]
[1737765929862,4.0069,249.58,249.49,4.0083]
[1737765930170,2.94,249.62,249.46,14.79817246]
[1737765930964,4.0075,249.55,249.46,14.79817246]
[1737765931165,0.02850104,249.56,249.52,0.03073536]
[1737765931370,14.79817246,249.6,249.41,1.2803]
[1737765931566,4.0074,249.55,249.52,0.02572287]
[1737765931771,0.02821224,249.56,249.52,0.02572287]
[1737765932265,4.0077,249.53,249.52,0.02572287]
[1737765933774,4.0083,249.49,249.41,1.2803]
[1737765934482,14.79817246,249.6,249.41,1.2803]
[1737765934681,4.0086,249.48,249.41,1.2803]
[1737765935071,14.79817246,249.6,249.41,1.2803]
[1737765935278,0.02997424,249.47,249.41,1.2803]
[1737765935478,14.79817246,249.6,249.48,0.02912433]
[1737765935674,0.02665616,249.46,249.39,1.2647]
[1737765935980,14.79817246,249.52,249.39,1.2647]
[1737765936780,4.0097,249.41,249.35,1.2771]
[1737765936982,0.0261696,249.48,249.33,1.326]
[1737765937276,0.02673713,249.43,249.33,1.326]
[1737765937680,4.0103,249.37,249.33,1.326]
[1737765937875,17.73817246,249.48,249.33,1.326]
[1737765938075,0.02694144,249.37,249.33,1.326]
[1737765938274,4.0099,249.4,249.33,1.326]
[1737765938488,0.02813294,249.37,249.33,1.326]
[1737765938684,4.0092,249.44,249.33,1.326]
[1737765938983,0.02782287,249.37,249.33,1.326]
[1737765939183,17.73817246,249.48,249.33,1.326]
[1737765939484,4.0106,249.35,249.33,1.326]
[1737765939679,0.02665468,249.43,249.28,1.2741]
[1737765939884,4.0112,249.32,249.28,1.2741]
[1737765940688,4.04161006,249.32,249.28,1.2741]
[1737765941078,4.0113,249.31,249.22,1.3163]
[1737765941685,4.0113,249.31,249.23,9.27106689]
[1737765942083,0.03041006,249.32,249.23,9.27106689]
[1737765942386,4.0114,249.3,249.23,9.27106689]
[1737765943384,4.0116,249.29,249.23,9.27106689]
[1737765944489,4.0117,249.28,249.23,9.27106689]
[1737765944788,0.03041006,249.32,249.27,9.27106689]
[1737765945085,4.0099,249.4,249.28,1.3449]
[1737765945287,0.3853,249.47,249.31,9.27106689]
[1737765945679,0.3853,249.47,249.31,13.28226689]
[1737765946281,0.02813089,249.41,249.37,0.02899718]
[1737765946582,0.02813089,249.41,249.28,1.3449]
[1737765946583,9.27106689,249.52,249.36,9.27106689]
[1737765947088,4.009,249.45,249.36,9.27106689]
[1737765947288,9.27106689,249.52,249.36,9.27106689]
[1737765947688,0.02587122,249.46,249.42,0.02594056]
[1737765951684,0.02587122,249.46,249.42,1.38974056]
[1737765952786,4.03477122,249.46,249.42,1.38974056]
[1737765956592,4.009,249.45,249.42,1.38974056]
[1737765956990,4.0091,249.44,249.42,0.02594056]
[1737765961792,0.02587122,249.46,249.35,1.3714]
[1737765961989,4.0102,249.38,249.35,1.3714]
[1737765962594,4.0102,249.38,249.27,18.82746107]
[1737765962792,2.94,249.46,249.28,1.3671]
[1737765962793,4.0103,249.37,249.28,1.3671]
[1737765962991,0.03071544,249.35,249.3,0.02797386]
[1737765965100,4.0111,249.32,249.3,0.02797386]
[1737765966101,4.012,249.26,249.15,14.81576107]
[1737765966503,4.012,249.26,249.16,1.381]
[1737765966706,4.0123,249.25,249.16,1.381]
[1737765966901,14.81576107,249.35,249.16,1.381]
[1737765967198,0.02656775,249.28,249.16,1.381]
[1737765968004,0.02656775,249.28,249.13,1.3125]
[1737765968398,14.81576107,249.31,249.13,1.3125]
[1737765968603,0.02793036,249.23,249.13,1.3125]
[1737765969700,4.0133,249.19,249.13,1.3125]
[1737765969902,4.0133,249.19,249.08,4.0149]
[1737765970102,4.0133,249.19,249.08,5.3291]
[1737765970304,0.02695625,249.16,249.08,5.3291]
[1737765970511,0.02695625,249.16,249.08,1.3142]
[1737765971405,0.02695625,249.16,249.03,1.2857]
[1737765971604,4.0158,249.03,248.92,4.0174]
[1737765971805,9.29314124,249.1,248.93,1.3862]
[1737765972004,0.02595897,249.0,248.93,1.3862]
[1737765974105,0.02595897,249.0,248.84,14.87061946]
[1737765974504,2.94,249.05,248.84,14.87061946]
[1737765974706,0.03088088,248.94,248.84,14.87061946]
[1737765975410,0.03088088,248.94,248.8,14.87061946]
[1737765975610,14.87061946,249.02,248.8,14.87061946]
[1737765975908,0.02545355,248.89,248.8,14.87061946]
[1737765976611,14.87061946,249.02,248.8,14.87061946]
[1737765977408,4.0177,248.91,248.8,14.87061946]
[1737765977614,0.02969139,248.93,248.89,0.02704712]
[1737765977807,14.87061946,248.98,248.79,2.6167]
[1737765978113,4.0178,248.9,248.89,0.02578363]
[1737765978611,0.02928071,248.93,248.89,0.02578363]
[1737765979314,4.0177,248.91,248.89,0.02578363]
[1737765980520,4.04658071,248.93,248.89,0.02578363]
[1737765980715,0.02928071,248.93,248.89,0.02578363]
[1737765980917,4.0177,248.91,248.89,0.02578363]
[1737765982618,0.02928071,248.93,248.79,2.6167]
[1737765982810,14.87061946,248.98,248.79,2.6167]
[1737765983015,4.0174,248.93,248.84,14.87061946]
[1737765983218,0.4478,249.01,248.84,14.87061946]
[1737765983722,0.02911586,248.95,248.84,14.87061946]
[1737765983914,0.02911586,248.95,248.79,2.6167]
[1737765984215,14.87061946,248.98,248.79,2.6167]
[1737765984422,0.02887778,248.89,248.79,2.6167]
[1737765984810,0.02887778,248.89,248.72,14.87061946]
[1737765985015,0.02887778,248.89,248.73,1.2892]
[1737765985216,14.87061946,248.94,248.73,1.2892]
[1737765985521,0.02866806,248.83,248.73,1.2892]
[1737765985720,0.02866806,248.83,248.78,14.87061946]
[1737765986020,0.03060839,248.83,248.79,2.772]
[1737765986320,0.4478,249.01,248.79,2.772]
[1737765986513,4.0188,248.84,248.79,1.3861]
[1737765986718,14.87061946,248.98,248.79,1.3861]
[1737765987117,4.0174,248.93,248.79,1.3861]
[1737765987318,0.02601037,248.91,248.86,0.02638852]
[1737765988022,4.0183,248.87,248.86,0.02638852]
[1737765988420,0.02601037,248.91,248.86,0.02638852]
[1737765989017,4.0183,248.88,248.86,0.02638852]
[1737765989516,0.02601037,248.91,248.86,0.02638852]
[1737765989718,4.0179,248.9,248.86,0.02638852]
[1737765990420,4.0182,248.88,248.86,0.02638852]
[1737765996419,0.02601037,248.91,248.86,0.02638852]
[1737765996730,0.02601037,248.91,248.86,1.37928852]
[1737765996924,0.02601037,248.91,248.86,2.71078852]
[1737765998722,4.04371037,248.91,248.86,2.71078852]
[1737765999127,0.02601037,248.91,248.86,2.71078852]
[1737765999425,4.0181,248.89,248.86,2.71078852]
[1737765999628,0.02601037,248.91,248.86,2.71078852]
[1737765999827,4.0172,248.94,248.9,9.30267717]
[1737766000029,9.30267717,249.07,248.91,1.297]
[1737766001025,0.03000093,249.0,248.96,0.03077978]
[1737766001422,4.0167,248.97,248.96,0.03077978]
[1737766001827,4.0182,248.88,248.86,1.3529]
[1737766002127,9.30267717,248.99,248.82,9.30267717]
[1737766002329,1.2748,248.98,248.78,1.3305]
[1737766002525,4.0188,248.84,248.78,1.3305]
[1737766002926,0.02891816,248.83,248.79,0.02992009]
[1737766005024,4.04791816,248.83,248.79,1.42472009]
[1737766005822,4.0191,248.82,248.79,1.42472009]
[1737766006333,0.02891816,248.83,248.81,9.30267717]
[1737766006529,9.30267717,249.04,248.82,4.0191]
[1737766006730,9.30267717,249.04,248.89,9.30267717]
[1737766007133,4.0163,249.0,248.89,9.30267717]
[1737766007334,9.30267717,249.04,248.89,9.30267717]
[1737766007731,0.02842542,248.99,248.94,0.03075624]
[1737766008927,4.017,248.95,248.94,0.03075624]
[1737766009133,0.02842542,248.99,248.81,9.30267717]
[1737766009326,9.30267717,248.96,248.81,9.30267717]
[1737766009932,4.0185,248.86,248.81,9.30267717]
[1737766010235,0.02992059,248.86,248.81,9.33097452]
[1737766010635,4.0179,248.9,248.85,9.30267717]
[1737766011231,9.30267717,249.04,248.85,9.30267717]
[1737766011427,4.0174,248.93,248.85,9.30267717]
[1737766011637,9.30267717,249.04,248.85,9.30267717]
[1737766011841,9.30267717,249.04,248.87,0.02548908]
[1737766012143,9.30267717,249.04,248.85,9.30267717]
[1737766012344,9.30267717,249.0,248.85,9.30267717]
[1737766012941,9.30267717,249.0,248.81,9.30267717]
[1737766013237,4.0176,248.91,248.9,0.02821531]
[1737766015446,4.0174,248.93,248.9,0.02821531]
[1737766015944,4.04650267,248.95,248.9,0.02821531]
[1737766016747,0.02940267,248.95,248.9,0.02821531]
[1737766017045,4.0172,248.94,248.9,0.02821531]
[1737766017548,0.02940267,248.95,248.9,0.02821531]
[1737766017736,2.94,249.07,248.9,4.04281531]
[1737766017939,2.94,249.07,248.9,4.0146]
[1737766018943,0.02759396,249.01,248.9,4.0146]
[1737766019143,9.30267717,249.0,248.81,9.30267717]
[1737766019343,4.0176,248.92,248.81,9.30267717]
[1737766019645,9.30267717,248.96,248.81,9.30267717]
[1737766019845,4.0179,248.9,248.81,9.30267717]
[1737766020043,1.3228,248.99,248.81,9.30267717]
[1737766020254,0.02564555,248.92,248.88,0.02808052]
[1737766020647,4.018,248.89,248.88,0.02808052]
[1737766021046,0.02564555,248.92,248.88,0.02808052]
[1737766021245,4.0178,248.91,248.88,0.02808052]
[1737766021446,0.02564555,248.92,248.88,0.02808052]
[1737766022744,4.04314555,248.92,248.88,0.02808052]
[1737766022947,0.02564555,248.92,248.88,0.02808052]
[1737766023242,9.30267717,249.04,248.89,9.30267717]
[1737766023443,9.30267717,249.04,248.89,10.63567717]
[1737766023950,4.0157,249.03,248.89,10.63567717]
[1737766024248,0.03018614,248.98,248.94,0.03021628]
[1737766025151,9.30267717,249.08,248.94,0.03021628]
[1737766025350,9.30267717,249.13,248.98,9.30267717]
[1737766025747,4.0137,249.16,248.99,2.7222]
[1737766025951,9.30267717,249.17,249.02,9.30267717]
[1737766026142,0.02944078,249.1,249.05,0.03043356]
[1737766026348,52.06885058,249.21,249.06,9.30267717]
[1737766026552,42.76617341,249.21,249.06,9.30267717]
[1737766027553,0.0294189,249.16,249.11,0.02644409]
[1737766027853,42.76617341,249.21,249.11,1.36824409]
[1737766028449,9.30267717,249.25,249.11,1.36824409]
[1737766028951,0.02922993,249.2,249.11,1.36824409]
[1737766029152,0.02922993,249.2,249.11,0.02644409]
[1737766029354,4.0142,249.13,249.11,0.02644409]
[1737766029554,9.30267717,249.16,249.11,0.02644409]
[1737766029753,2.6831,249.19,249.11,0.02644409]
[1737766030056,0.03044551,249.16,249.11,0.02644409]
[1737766031454,4.0124,249.24,249.12,4.0142]
[1737766032157,4.012,249.26,249.13,4.014]
[1737766032354,4.012,249.26,249.11,16.16540922]
[1737766032657,0.02751861,249.21,249.17,4.0134]
[1737766032858,0.02751861,249.21,249.16,0.02580213]
[1737766033155,4.0115,249.3,249.16,0.02865139]
[1737766033355,4.0115,249.3,249.15,14.85760922]
[1737766033558,14.85760922,249.37,249.15,14.85760922]
[1737766033858,14.85760922,249.37,249.17,4.0134]
[1737766034455,0.02745914,249.29,249.25,0.028208]
[1737766035056,1.3934,249.44,249.25,0.028208]
[1737766035358,4.0102,249.38,249.25,5.2901]
[1737766035557,1.3934,249.44,249.25,1.278]
[1737766036360,0.02710978,249.37,249.32,0.02914184]
[1737766039054,12.03,249.71,249.32,0.02914184]
[1737766039256,14.85760922,249.58,249.37,4.0102]
[1737766039561,2.6248,249.59,249.4,14.85760922]
[1737766039759,2.6248,249.59,249.44,14.85760922]
[1737766040158,2.6248,249.59,249.45,1.3214]
[1737766040360,0.03067742,249.54,249.49,0.0263742]
[1737766041163,1.3492,249.73,249.53,14.85760922]
[1737766041361,4.0052,249.69,249.53,14.85760922]
[1737766041561,1.3492,249.73,249.57,14.85760922]
[1737766041963,4.0045,249.73,249.6,4.0065]
[1737766042466,0.03041481,249.69,249.64,0.02739581]
[1737766044663,1.3294,249.81,249.65,14.85760922]
[1737766044864,4.0042,249.75,249.65,14.85760922]
[1737766045561,1.3294,249.81,249.65,14.85760922]
[1737766045767,4.0044,249.74,249.65,14.85760922]
[1737766045969,0.02260438,249.72,249.68,0.03044341]
[1737766046470,1.3155,249.87,249.7,14.85760922]
[1737766046858,4.0036,249.79,249.7,14.85760922]
[1737766047065,1.3155,249.87,249.7,14.85760922]
[1737766047265,16.17310922,249.87,249.66,1.2816]
[1737766047467,4.0046,249.72,249.66,1.2816]
[1737766047766,16.17310922,249.87,249.66,1.2816]
[1737766047965,16.17310922,249.87,249.67,0.02971035]
[1737766048159,16.17310922,249.87,249.66,1.2816]
[1737766048361,16.17310922,249.87,249.75,0.02607341]
[1737766049766,1.3155,249.87,249.75,0.02607341]
[1737766050666,4.003,249.83,249.75,0.02607341]
[1737766050863,15.09300922,249.95,249.75,0.02607341]
[1737766051262,4.0021,249.88,249.76,4.0039]
[1737766051466,15.09300922,249.95,249.83,0.02733566]
[1737766052667,4.0023,249.87,249.83,0.02733566]
[1737766053269,0.2354,249.95,249.83,0.02733566]
[1737766053869,17.52040922,249.99,249.83,0.02733566]
[1737766054072,17.52040922,249.99,249.81,14.85760922]
[1737766054073,2.6628,249.99,249.81,14.85760922]
[1737766054373,2.6628,249.99,249.89,0.03046504]